Cogmind - Beta 13 @@@ ROGUE MODE // 2024.04.19 @ 16:16:27 Player: szymekc Result: Destroyed by G-67 Veteran with Plasma Rifle Performance ------------- Evolutions (6) 3000 Regions Visited (22) 4400 Robots Destroyed (294) 1470 Value Destroyed (12660) 12660 Prototype IDs (46) 920 Alien Tech Used (1) 200 Bonus (5833) 5833 TOTAL SCORE: 28483 Bonus ------- High Alert Combat Kills 1881 Follower Combat Kills 2557 Network Hubs Disabled 400 Met Imprinter 300 Met Zhirov 300 Built Enhanced Grunts 300 Met R17 at Cetus 500 Friendly Fire -405 Cogmind --------- Core Integrity 0/1150 Matter 43/300 Energy 99/100 System Corruption 22% Temperature Cool (23) Movement Hovering (80) Location -4/Armory Parts ------- > --- POWER (2) -------- (None) > --- PROPULSION (5) --- Centrium Leg Centrium Leg Combat Linear Gravjet > --- UTILITY (9) ------ Advanced Melee Analysis Suite Microactuators > --- WEAPON (3) ------- (None) > --- INVENTORY (5) ---- Light Quantum Reactor Light Quantum Reactor Large Storage Unit Transdimensional Reconstructor Long-range Proton Cannon Peak State ------------ > --- POWER ------------ Heavy Antimatter Reactor Particle Reactor > --- PROPULSION ------- Advanced Medium Treads Centrium Heavy Treads Centrium Heavy Treads > --- UTILITY ---------- Advanced Power Amplifier Improved Heat Sink Advanced Heat Sink Advanced Heat Sink Huge Storage Unit Enhanced Optical Array Improved Weapon Cycler Centrium Medium Armor Plating Graphene Brace > --- WEAPON ----------- Matter Neutralizer Matter Neutralizer Matter Neutralizer > --- INVENTORY -------- Particle Reactor Light Quantum Reactor Advanced Medium Treads Advanced Medium Treads Large Storage Unit Energy Well Advanced Energy Well Advanced Energy Well Improved Matter Compressor Advanced Terrain Scan Processor Centrium Medium Armor Plating Long-range Tractor Beam Transdimensional Reconstructor Matter Neutralizer Micro-nuke Launcher Micro-nuke Launcher Micro-nuke Launcher Advanced Datajack Lance [Rating: 141] Favorites ----------- Power F-cell Engine Engine F-cell Engine Power Core Fission Core Reactor Heavy Antimatter Reactor Propulsion Light Treads Treads Light Treads Leg Centrium Leg Wheel Subdweller Monowheel Hover Unit Airjet Flight Unit Cooled VTOL Module Utility Enhanced Optical Array Device Advanced Heat Sink Storage Huge Storage Unit Processor Enhanced Optical Array Hackware Hacking Suite Protection Medium Regenerative Plating Weapon Advanced Plasma Cannon Energy Gun Medium Laser Energy Cannon Advanced Plasma Cannon Ballistic Gun Hypervelocity Gauss Rifle Ballistic Cannon Improved Light Cannon Launcher Micro-nuke Launcher Impact Weapon Makeshift Hammer Slashing Weapon Phasing Sabre Piercing Weapon Lance Special Melee Weapon Advanced Datajack Build | -11 -10 -10 -8 -7 -7 -7 -7 -6 -6 -6 -6 -6 -6 -6 -6 -5 -5 -5 -5 -4 -4 -4 ------- Run | Yrd Mat Sub Mat Fac Low Low Zio Pro Fac Was Fac Ext Cet Arc Hub Fac Upp Upp Zhi Pro Fac Arm Slots Evolved 12 | . . . 4 2 . . . . 2 . . . . . . 2 . . . . 2 . Power 1 | . . . . 1 . . . . . . . . . . . . . . . . . . Propulsion 3 | . . . 2 . . . . . . . . . . . . . . . . . 1 . Utility 7 | . . . 2 1 . . . . 2 . . . . . . 1 . . . . 1 . Weapon 1 | . . . . . . . . . . . . . . . . 1 . . . . . . Parts Attached 388 | 2 8 19 25 41 5 4 4 5 13 . 15 39 7 12 25 35 8 5 7 15 51 43 Power 41 | . 1 4 2 5 . . . . 1 . 4 7 1 . 3 1 1 1 1 3 3 3 Engine 14 | . . 4 1 5 . . . . . . . . 1 . 1 1 . . . 1 . . Core 16 | . 1 . 1 . . . . . 1 . 4 7 . . . . . . . . . 2 Reactor 11 | . . . . . . . . . . . . . . . 2 . 1 1 1 2 3 1 Propulsion 65 | 2 1 4 8 10 1 . . . 3 . 2 9 1 . 4 2 . . 1 . 6 11 Treads 36 | 2 1 4 5 1 . . . . . . . 6 1 . 4 2 . . 1 . 6 3 Leg 5 | . . . . . . . . . . . . 1 . . . . . . . . . 4 Wheel 4 | . . . 2 2 . . . . . . . . . . . . . . . . . . Hover 9 | . . . . 3 1 . . . 1 . . . . . . . . . . . . 4 Flight 11 | . . . 1 4 . . . . 2 . 2 2 . . . . . . . . . . Utility 165 | . 3 3 7 16 2 4 . 1 6 . 7 13 2 8 10 18 6 2 3 10 30 14 Device 89 | . . . 2 9 2 4 . . 3 . 2 6 . 6 6 12 3 1 . 5 21 7 Storage 13 | . 1 . . 1 . . . 1 . . 1 2 . . 1 . . . 1 3 . 2 Processor 10 | . . . . 3 . . . . 2 . 1 2 . . . . . . . 1 . 1 Hackware 9 | . . . 1 1 . . . . 1 . 2 . . . . 2 . . . . 2 . Protection 44 | . 2 3 4 2 . . . . . . 1 3 2 2 3 4 3 1 2 1 7 4 Artifact . | . . . . . . . . . . . . . . . . . . . . . . . Weapon 117 | . 3 8 8 10 2 . 4 4 3 . 2 10 3 4 8 14 1 2 2 2 12 15 Energy Gun 2 | . . . 1 . . . . . . . . . . . . . . . . . . 1 Energy Cannon 44 | . . 1 . 3 . . . . . . 2 5 1 . 4 9 1 1 1 2 8 6 Ballistic Gun 1 | . . . . . . . . . . . . . . . . . . . . . . 1 Ballistic Cannon 21 | . 3 5 6 2 . . . . . . . 1 . 1 . 1 . . 1 . . 1 Launcher 18 | . . 2 1 1 2 . 1 2 . . . . 2 . 2 . . . . . 4 1 Special Weapon . | . . . . . . . . . . . . . . . . . . . . . . . Impact Weapon 9 | . . . . . . . 2 2 3 . . 2 . . . . . . . . . . Slashing Weapon 17 | . . . . 4 . . 1 . . . . 1 . 2 1 3 . . . . . 5 Piercing Weapon 2 | . . . . . . . . . . . . . . . . 1 . 1 . . . . Special Melee Weapon 3 | . . . . . . . . . . . . 1 . 1 1 . . . . . . . Unidentified Prototypes 15 | . . . 2 2 . . . . . . . . 1 . 4 . . . 4 2 . . Corrupted Parts 13 | . . . . . . . . . . . 1 3 . . 4 . . . . 4 1 . System Corruption 63 | . . . . . . . . . . . 3 10 . . 25 . . . . 24 1 . Parts Lost 112 | . . 9 3 5 2 2 . 4 . . 4 13 1 . 5 6 2 1 . 1 35 19 Power 16 | . . 2 . 1 1 . . 1 . . . 3 1 . . 1 . . . . 5 1 Propulsion 27 | . . 3 1 3 1 2 . . . . 1 3 . . 3 . . . . . 6 4 Utility 42 | . . 2 1 . . . . 1 . . 3 5 . . 1 3 1 . . 1 16 8 Weapon 27 | . . 2 1 1 . . . 2 . . . 2 . . 1 2 1 1 . . 8 6 Highest Loss Streak 10 | . . 3 3 2 1 2 . 4 . . 2 8 1 . 2 1 2 1 . 1 10 8 To Critical Strikes 1 | . . . . . . . . . . . . . . . . . . . . . 1 . Average Slot Usage (%) 88 | . 98 98 97 73 83 83 74 69 65 86 90 90 95 99 99 87 88 87 87 87 78 47 Engine 5 | . 10 8 7 3 7 7 7 5 . . 5 . 1 6 6 5 5 5 5 4 3 . Core 2 | . 3 3 . 1 . . . . 1 6 5 10 11 6 5 . . . . . . . Reactor 1 | . . . . . . . . . . . . . . . . 4 5 5 5 5 6 . Treads 16 | . 27 28 31 5 . . . . . . . 15 26 26 25 10 11 11 11 11 10 2 Flight 2 | . . . . 6 15 15 15 15 17 26 25 10 . . . . . . . . . . Device 11 | . . . 9 8 7 7 7 5 1 13 6 10 13 15 18 12 22 23 23 25 21 6 Storage 7 | . 14 14 9 3 . . . 3 6 6 6 4 6 6 6 5 5 5 5 5 5 4 Processor 6 | . . . . 9 15 15 15 11 11 6 11 12 13 13 13 10 5 5 5 5 5 8 Hackware 4 | . . . 5 14 15 15 15 15 20 20 20 9 4 . . 7 . . . . 3 . Protection 8 | . 12 13 10 . . . . . . . . 4 7 9 7 7 10 10 10 7 8 2 Energy Cannon 5 | . . 1 . . . . . . . . . 4 . 6 6 10 17 14 16 17 10 1 Ballistic Cannon 7 | . 25 26 17 3 . . . . . . . 1 . . . . . . . . . . Slashing Weapon 1 | . . . . 5 7 7 7 6 . . . . 6 5 3 2 . . . . . 4 Naked Turns . | . . . . . . . . . . . . . . . . . . . . . . . Heaviest Build 175 | 13 60 63 68 65 7 5 12 17 18 18 20 67 77 78 147 157 158 161 158 160 175 92 Greatest Support 190 | 40 40 40 80 80 10 10 10 10 20 20 21 106 106 106 160 160 160 160 160 160 190 155 Greatest Overweight (x) 5 | . 1 1 3 2 . . 1 1 . . 5 1 . . 1 . . 1 . . 1 1 Average Overweight (x) . | . . 1 . . . . . . . . . . . . . . . . . . . . Largest Inventory Capacity 25 | 8 20 20 20 20 5 5 5 8 8 8 8 15 15 15 25 25 25 25 25 25 25 20 Average Capacity 18 | 8 17 20 20 10 5 5 5 6 8 8 8 7 15 15 24 25 25 25 25 25 24 15 Most Carried 25 | 6 18 20 20 20 5 5 5 8 8 7 8 12 15 15 25 25 24 25 25 25 25 20 Average Carried 16 | 6 11 19 19 9 4 5 5 6 6 6 7 6 13 14 19 23 23 23 24 24 22 9 Final Capacity 25 | 8 20 20 20 5 5 5 5 8 8 8 8 15 15 15 25 25 25 25 25 25 5 5 Final Carried 25 | 6 18 20 20 5 5 5 5 6 6 7 8 12 15 15 21 25 23 25 25 25 5 5 Class Distribution -------------------- 27% | Mutant 19% | Scavenger-Mutant 13% | Scavenger-Tank 11% | Hacker-Sprinter 8% | Scavenger-Assassin 7% | Scavenger-Gunner 6% | Hacker-Mutant Dominant Class ---------------- Mutant | -10/Materials Mutant | -10/Subcaves Scavenger-Mutant | -8/Materials Hacker-Mutant | -7/Factory Hacker-Sprinter | -7/Lower Caves Hacker-Sprinter | -7/Lower Caves Hacker-Sprinter | -7/Zion Hacker-Sprinter | -6/Proximity Caves Hacker-Sprinter | -6/Factory Hacker-Sprinter | -6/Waste Hacker-Sprinter | -6/Factory Scavenger-Mutant | -6/Extension Scavenger-Mutant | -6/Cetus Scavenger-Mutant | -6/Archives Scavenger-Assassin | -6/Hub_04(d) Scavenger-Assassin | -5/Factory Scavenger-Tank | -5/Upper Caves Scavenger-Tank | -5/Upper Caves Scavenger-Tank | -5/Zhirov Scavenger-Tank | -4/Proximity Caves Scavenger-Tank | -4/Factory Mutant | -4/Armory Resources | -11 -10 -10 -8 -7 -7 -7 -7 -6 -6 -6 -6 -6 -6 -6 -6 -5 -5 -5 -5 -4 -4 -4 ----------- Run | Yrd Mat Sub Mat Fac Low Low Zio Pro Fac Was Fac Ext Cet Arc Hub Fac Upp Upp Zhi Pro Fac Arm Matter Collected 7779 | 195 687 837 833 868 75 81 10 69 149 . 166 472 168 169 582 814 75 50 389 125 736 229 Remotely . | . . . . . . . . . . . . . . . . . . . . . . . Salvage Created 12900 | . 663 486 640 850 232 . . 22 311 . 306 397 170 355 708 1242 1124 440 529 1137 2882 406 Parts 528 | . 50 31 24 53 5 . . . . . 11 16 9 23 38 55 34 11 7 39 107 15 Haulers Intercepted 9 | . 2 . 3 1 . . . . 1 . . . . . 1 . . . . . 1 . Recyclers Shooed 5 | . . . 1 . . . . . . . . 2 . . . . . . . . 2 . Parts Field Recycled . | . . . . . . . . . . . . . . . . . . . . . . . Retrieved Matter . | . . . . . . . . . . . . . . . . . . . . . . . Parts Self-Destructed 54 | . . 19 . . 7 . . . . . . . . . . . 12 5 . 11 . . Prevented 59 | . . . . . 1 . . . . . . . . . . . 22 4 5 27 . . Kills | -11 -10 -10 -8 -7 -7 -7 -7 -6 -6 -6 -6 -6 -6 -6 -6 -5 -5 -5 -5 -4 -4 -4 ------- Run | Yrd Mat Sub Mat Fac Low Low Zio Pro Fac Was Fac Ext Cet Arc Hub Fac Upp Upp Zhi Pro Fac Arm Combat Hostiles Destroyed 218 | . 15 27 15 18 4 . . 1 . . 9 7 2 1 4 20 17 5 . 18 47 8 Melee 7 | . . . . 3 . . . 1 . . 2 . . . . . . . . . . 1 Guns 3 | . . . . . . . . . . . . . . . . . . . . . . 3 Cannons 134 | . 15 20 12 11 . . . . . . 3 6 . 1 2 11 16 4 . 10 22 1 AOE 37 | . . 7 3 4 4 . . . . . . . . . 1 . 1 . . . 14 3 Classes Destroyed 16 | . 6 3 3 2 . . . . . . . . . . . . . . . 1 . 1 Worker 14 | . 3 . 1 . . . . . . . . . . . 6 . . . . . 4 . Builder 12 | . 1 . 1 . . . . . . . . . . . 4 1 . . . . 5 . Hauler 9 | . 2 . 3 1 . . . . 1 . . . . . 1 . . . . . 1 . Recycler 8 | . . . 2 1 . . . . 1 . . . . . 1 . . . . . 3 . Operator 14 | . 1 . . 1 . . . . . . 1 1 . 9 . 1 . . . . . . Drone 1 | . . . . . . . . . . . . . . . . . . . . 1 . . Watcher 18 | . 3 . . 4 . . . . 3 . 2 1 1 . 1 . . . . . 3 . Swarmer 45 | . . 7 3 3 4 . . 1 . . 8 2 . . . . 6 . . 6 5 . Grunt 81 | . 15 2 6 7 . . . . . . . 2 . . . 5 10 3 . 9 19 3 Brawler 6 | . . . 2 . . . . . . . . . . . . 1 . 1 . . 1 1 Duelist 7 | . . . 1 . . . . . . . . . . . . 1 . . . . 2 3 Protector 1 | . . . . . . . . . . . . . . . . . . . . . . 1 Sentry 21 | . . 1 3 4 . . . . . . . 2 . 1 1 3 1 . . 2 2 1 Hunter 17 | . . . . 2 . . . . . . 1 1 . . 3 6 . . . . 4 . Programmer 21 | . . . . 2 . . . . . . . . . . . 4 . 1 . . 14 . Cetus Guard 2 | . . . . . . . . . . . . . 2 . . . . . . . . . Subdweller 17 | . . 17 . . . . . . . . . . . . . . . . . . . . Packrat 1 | . . . . . 1 . . . . . . . . . . . . . . . . . Best Kill Streak 23 | . 10 7 9 4 4 . . 1 1 . 4 3 3 2 10 5 13 4 . 7 23 4 Combat Bots Only 13 | . 5 7 7 4 4 . . 1 . . 4 2 2 1 2 5 13 4 . 7 13 4 Max Kills in Single Turn 10 | . 4 4 2 2 3 . . 1 1 . 1 1 1 1 10 1 1 1 . 1 7 3 Gunslinging . | . . . . . . . . . . . . . . . . . . . . . . . Exploded 4 | . . 4 2 2 3 . . . . . . . . . 1 . 1 . . . 4 2 Melee 1 | . . . . 1 . . . 1 . . 1 . . . . . . . . . . 1 Uniques/NPCs Destroyed . | . . . . . . . . . . . . . . . . . . . . . . . Combat | -11 -10 -10 -8 -7 -7 -7 -7 -6 -6 -6 -6 -6 -6 -6 -6 -5 -5 -5 -5 -4 -4 -4 -------- Run | Yrd Mat Sub Mat Fac Low Low Zio Pro Fac Was Fac Ext Cet Arc Hub Fac Upp Upp Zhi Pro Fac Arm Hostile Shots Fired 1982 | . 47 128 62 252 7 9 . 54 12 . 53 161 11 10 150 148 103 15 . 101 495 164 Missed 592 | . 16 36 16 117 3 2 . 28 6 . 23 73 6 2 47 27 19 3 . 17 107 44 Damage Taken 25572 | . 385 1959 647 1394 61 142 . 451 90 . 424 1488 107 136 1241 2381 1383 236 . 1111 7881 4055 Core 2773 | . 55 193 23 228 18 67 . 176 44 . 130 310 . 39 26 89 53 37 . 116 729 440 Absorbed by Shields 1775 | . . . . . . . . . . . 33 145 37 47 411 . . . . 436 666 . Reduced by Siege Mode 929 | . . . . . . . . . . . . . . . . 155 125 5 . 130 514 . Redirected to Shielding 150 | . . . . . . . . . . . . . . . . . . . . 18 132 . Ignored by Resistances 10 | . . . . . . . . . . . . 10 . . . . . . . . . . Regen/Repaired (Parts) 4119 | . 134 . . . . . . . . . . . 27 . 160 1590 268 42 18 175 1705 . Core Remaining (%) 55 | 100 . . 95 . . . . 30 . . . . . . 35 . . . . 70 . . Volleys Fired 818 | . 46 112 49 36 4 . . 2 . . 7 54 10 9 28 84 79 16 22 76 144 40 Largest 3 | . 2 2 2 2 1 . . 1 . . 1 2 1 2 2 2 3 3 1 3 3 2 Hottest 315 | . 78 119 96 96 39 . . 39 . . 90 143 43 143 165 196 277 277 88 284 315 120 Shots Fired 1192 | . 92 200 96 67 4 . . 2 . . 7 62 11 15 34 105 90 31 22 100 210 44 Gun 21 | . . . . . . . . . . . . . . . . . . . . . . 21 Cannon 1118 | . 92 197 94 64 . . . . . . 7 62 . 15 27 105 90 31 22 100 194 18 Launcher 53 | . . 3 2 3 4 . . 2 . . . . 11 . 7 . . . . . 16 5 Special . | . . . . . . . . . . . . . . . . . . . . . . . Kinetic 485 | . 92 191 96 62 . . . . . . . 8 . 9 . 22 . . . . . 5 Thermal 427 | . . 6 . . . . . . . . 7 54 . 6 19 45 47 22 . 41 146 34 Explosive 33 | . . 3 . 3 4 . . 2 . . . . . . . . . . . . 16 5 Electromagnetic 247 | . . . . 2 . . . . . . . . 11 . 15 38 43 9 22 59 48 . Robot Hit Streak 28 | . 6 14 10 12 1 . . . . . 2 8 1 3 4 26 10 15 28 14 24 11 Robot Miss Streak 5 | . 3 2 3 2 1 . . 1 . . 1 3 . 3 3 3 4 3 . 5 3 2 Penetration Max 1 | . . . . . . . . . . . . . . . . 1 . . . . . . Secondary Targets . | . . . . . . . . . . . . . . . . . . . . . . . Shots Hit Robots 830 | . 52 108 66 61 6 . . 1 5 . 19 68 1 25 15 80 41 23 22 57 132 48 Core Hits 443 | . 36 42 32 33 6 . . . . . 5 19 8 11 36 29 25 8 17 21 83 32 Critical Kills 8 | . . . . . . . . . . . . . . . . 4 . 1 . . 2 1 Critical Parts Destroyed 2 | . . . . . . . . . 1 . . 1 . . . . . . . . . . Critical Strikes 28 | . 2 2 2 3 . . . . 1 . . 1 . 1 1 5 . 2 . . 2 6 Meltdown 7 | . . . . . . . . . . . . . . . . 4 . 1 . . 2 . Destroy 1 | . . . . . . . . . . . . . . . . . . . . . . 1 Blast 11 | . 2 2 2 3 . . . . . . . . . 1 . 1 . . . . . . Corrupt 2 | . . . . . . . . . . . . . . . 1 . . 1 . . . . Smash 2 | . . . . . . . . . 1 . . 1 . . . . . . . . . . Sever 5 | . . . . . . . . . . . . . . . . . . . . . . 5 Melee Attacks 318 | . . . . 71 10 5 2 3 27 . 48 59 28 22 4 17 . . . . . 22 Impact 107 | . . . . . . . . 3 27 . 48 29 . . . . . . . . . . Slashing 173 | . . . . 71 10 5 2 . . . . 7 28 22 4 2 . . . . . 22 Piercing 15 | . . . . . . . . . . . . . . . . 15 . . . . . . Sneak Attacks 44 | . . . . 3 1 . . . 2 . . 24 . 11 2 1 . . . . . . Combat Hostiles . | . . . . . . . . . . . . . . . . . . . . . . . Follow-up Attacks 2 | . . . . . . . . . . . . . . . . . . . . . . 2 Damage Inflicted 38214 | . 1322 2591 2009 2360 671 . . 58 361 . 928 1760 775 1704 2501 3033 1661 854 352 1944 10087 3243 Guns 430 | . . . . . . . . . . . . . . . . . . . . . . 430 Cannons 22129 | . 1180 2256 1537 1148 . . . . . . 130 1552 . 248 589 2951 1580 854 352 1944 5167 641 Explosions 10669 | . 142 335 469 366 332 . . . . . . . 775 . 1727 . 81 . . . 4920 1522 Melee 4935 | . . . . 846 339 . . 58 361 . 798 198 . 1456 185 82 . . . . . 612 Ramming 51 | . . . 3 . . . . . . . . 10 . . . . . . . . . 38 Kinetic 7648 | . 1180 2256 2006 1094 . . . . . . . 213 . 183 . 684 . . . . . 32 Thermal 10812 | . . . . 149 . . . . . . 130 1339 433 65 418 1168 323 609 . 420 4719 1039 Explosive 6239 | . . 335 . 217 332 . . . . . . . . . . . . . . . 3833 1522 Electromagnetic 8529 | . 142 . . 54 . . . . . . . . 342 . 1898 1099 1338 245 352 1524 1535 . Impact 1415 | . . . . . . . . 58 361 . 798 198 . . . . . . . . . . Slashing 3460 | . . . . 846 339 . . . . . . . . 1456 185 22 . . . . . 612 Piercing 60 | . . . . . . . . . . . . . . . . 60 . . . . . . Highest Corruption 27 | . . . . 1 . . . . . 10 13 23 23 23 27 2 2 1 1 25 22 22 Average Corruption 8 | . . . . 1 . . . . . 10 5 18 23 14 14 1 1 1 1 1 8 22 Corruption Purged 28 | . . . . 1 . . . . . . . . . 23 . 2 2 . . . . . Corruption Blocked . | . . . . . . . . . . . . . . . . . . . . . . . Effects 216 | . . . . 3 . . . . . 1 13 63 27 15 2 2 . 1 1 15 37 36 Message Errors 45 | . . . . . . . . . . 1 4 10 8 4 1 . . 1 . 6 6 4 Matter Fused 38 | . . . . 1 . . . . . . 3 14 4 1 . 1 . . 1 2 2 9 Heat Flow Errors 31 | . . . . . . . . . . . 1 6 5 4 1 . . . . 4 4 6 Energy Discharges 29 | . . . . . . . . . . . 2 11 4 2 . . . . . 1 4 5 Parts Rejected 2 | . . . . . . . . . . . . 1 . . . . . . . . 1 . Data Loss (minor) 26 | . . . . 2 . . . . . . 2 10 4 1 . . . . . 2 4 1 Data Loss (major) 7 | . . . . . . . . . . . 1 1 . 1 . 1 . . . . . 3 Misfires 7 | . . . . . . . . . . . . 3 1 2 . . . . . . 1 . Alerts 4 | . . . . . . . . . . . . 1 . . . . . . . . 3 . Misdirections 12 | . . . . . . . . . . . . 4 1 . . . . . . . . 7 Weapon Failures 15 | . . . . . . . . . . . . 2 . . . . . . . . 12 1 Overload Shots . | . . . . . . . . . . . . . . . . . . . . . . . Overflow Damage 2391 | . 2 9 17 101 154 . . 33 226 . 232 148 10 250 124 43 65 58 2 75 818 24 Projectiles 476 | . . . 17 . . . . . . . . 2 . . 27 43 33 58 2 75 199 20 Explosions 716 | . 2 9 . . . . . . . . . . 10 . 40 . 32 . . . 619 4 Melee 1199 | . . . . 101 154 . . 33 226 . 232 146 . 250 57 . . . . . . . Knockbacks 69 | . 11 21 9 13 . . . . 3 . 1 5 . . . 6 . . . . . . Impact 4 | . . . . . . . . . 3 . 1 . . . . . . . . . . . Kinetic 62 | . 11 21 8 13 . . . . . . . 4 . . . 5 . . . . . . Secondary 3 | . . . 1 . . . . . . . . 1 . . . 1 . . . . . . Self-Inflicted Damage 500 | . 20 22 . . . . . 37 . . . . 20 . 96 . . . . . 290 15 Shots 13 | . 2 1 . . . . . 1 . . . . 1 . 1 . . . . . 6 1 Rammed 14 | . . . 1 . . . . . . . . 1 . . . . . . . . . 12 Targets Rammed 14 | . . . 1 . . . . . . . . 1 . . . . . . . . . 12 Kicked . | . . . . . . . . . . . . . . . . . . . . . . . Crushed . | . . . . . . . . . . . . . . . . . . . . . . . Highest Temperature 367 | . 307 18 81 367 . . . 8 . . 263 344 238 234 182 362 258 209 67 195 363 259 Average Temperature 93 | . 69 6 22 114 . . . 8 . . 96 135 92 47 46 128 92 113 34 77 107 80 Received Heat Transfer 5128 | . 210 438 333 510 . 27 . 117 36 . 18 589 . 18 241 414 216 72 . 241 1438 210 Effects 9 | . 2 . . 2 . . . . . . . 1 . . . . 1 . . . 3 . Energy Bleed 4 | . 1 . . 1 . . . . . . . 1 . . . . 1 . . . . . Interference 3 | . . . . . . . . . . . . . . . . . . . . . 3 . Short Circuit 2 | . 1 . . 1 . . . . . . . . . . . . . . . . . . Siege Activations 25 | . . . . . . . . . . . . . . . 1 7 2 1 . 3 11 . Total Turns 588 | . . . . . . . . . . . . . . . 3 163 63 20 . 91 248 . Longest Duration 62 | . . . . . . . . . . . . . . . 3 62 44 20 . 41 50 . Robots Corrupted 27 | . . . . . . . . . . . . . 2 . 1 5 . . 1 8 10 . Combat Hostiles 25 | . . . . . . . . . . . . . 2 . 1 5 . . 1 8 8 . Parts Fried 88 | . . . . . . . . . 12 . 10 3 2 . 13 10 3 4 1 14 16 . Impact Corruptions 27 | . . . . . . . . 1 11 . 11 3 . . . 1 . . . . . . Robots Melted 8 | . . . . . . . . . . . . . . . . 4 . 1 . . 3 . Combat Hostiles 8 | . . . . . . . . . . . . . . . . 4 . 1 . . 3 . Parts Melted 19 | . . . . . . . . . . . . 4 . . . 6 . . . 1 8 . Heat Transferred 11928 | . . . . 100 . . . . . . 200 2025 300 100 500 1650 400 850 . 650 4117 1036 Parts Sabotaged . | . . . . . . . . . . . . . . . . . . . . . . . Parts Stolen . | . . . . . . . . . . . . . . . . . . . . . . . Parts Stripped . | . . . . . . . . . . . . . . . . . . . . . . . Power Chain Reactions 4 | . . . . . . . . . . . . . 2 . 1 . 1 . . . . . Alert | -11 -10 -10 -8 -7 -7 -7 -7 -6 -6 -6 -6 -6 -6 -6 -6 -5 -5 -5 -5 -4 -4 -4 ------- Run | Yrd Mat Sub Mat Fac Low Low Zio Pro Fac Was Fac Ext Cet Arc Hub Fac Upp Upp Zhi Pro Fac Arm Peak Influence 1590 | . 410 . 533 561 . . . . 455 100 345 601 414 348 1590 798 . . . . 1494 883 Initial 1007 | . . . 98 25 . . . . 97 55 70 104 273 108 55 779 . . . . 1007 646 Average 348 | . 158 . 214 185 . . . . 254 74 167 290 346 244 360 617 . . . . 624 655 Maximum Alert Level 4 | . 2 . 2 2 . . . . 2 . 1 2 2 1 4 3 . . . . 4 3 Low Security (%) 36 | 100 65 . 66 62 . . . . 38 100 65 36 1 44 33 . . . . . . . Level 1 28 | . 32 . 17 27 . . . . 51 . 34 39 41 55 37 . . . . . 33 . Level 2 28 | . 2 . 15 9 . . . . 10 . . 24 57 . 15 82 . . . . 35 91 Level 3 5 | . . . . . . . . . . . . . . . 9 17 . . . . 21 8 Level 4 1 | . . . . . . . . . . . . . . . 5 . . . . . 9 . Level 5 . | . . . . . . . . . . . . . . . . . . . . . . . High Security . | . . . . . . . . . . . . . . . . . . . . . . . Max Security . | . . . . . . . . . . . . . . . . . . . . . . . Squads Dispatched 55 | . 5 . 6 13 . . . . 3 . 1 4 . . 9 5 . . . . 6 3 Investigation 20 | . 4 . 2 6 . . . . 2 . 1 2 . . 1 1 . . . . 1 . Extermination 9 | . . . . 2 . . . . . . . . . . 2 2 . . . . 3 . Reinforcement 18 | . 1 . 3 2 . . . . 1 . . 2 . . 4 2 . . . . 2 1 Assault 4 | . . . 1 . . . . . . . . . . . 1 . . . . . . 2 Garrison 4 | . . . . 3 . . . . . . . . . . 1 . . . . . . . Intercept . | . . . . . . . . . . . . . . . . . . . . . . . Searches Triggered 4 | . . . . . . . . . 1 . . . . . . . . . . . 3 . Construction Impeded 3 | . . . . . . . . . . . . . . . 1 . . . . . 2 . Haulers Reinforced 2 | . . . . . . . . . . . . . . . 2 . . . . . . . Active Scanning Responses . | . . . . . . . . . . . . . . . . . . . . . . . Cargo Convoy Interrupts . | . . . . . . . . . . . . . . . . . . . . . . . Stealth | -11 -10 -10 -8 -7 -7 -7 -7 -6 -6 -6 -6 -6 -6 -6 -6 -5 -5 -5 -5 -4 -4 -4 --------- Run | Yrd Mat Sub Mat Fac Low Low Zio Pro Fac Was Fac Ext Cet Arc Hub Fac Upp Upp Zhi Pro Fac Arm Distress Signals 15 | . . . 2 2 . . . . . . . 3 1 . 4 . . . . . 1 2 Communications Jammed 18 | . . . . . . . . . . . . . . . . . . . . . 18 . Distress Signals 18 | . . . . . . . . . . . . . . . . . . . . . 18 . Times Spotted 494 | . 21 37 17 45 5 16 . 18 22 5 23 37 10 25 34 25 17 7 . 24 74 32 Peak Tracking Total 16 | . 3 9 4 10 4 16 . 8 5 5 5 5 5 2 8 5 13 4 . 8 14 11 Tactical Retreats 47 | . 2 2 . 13 1 2 . 5 6 . 6 1 . . 1 . . 1 . 1 3 3 Traps | -11 -10 -10 -8 -7 -7 -7 -7 -6 -6 -6 -6 -6 -6 -6 -6 -5 -5 -5 -5 -4 -4 -4 ------- Run | Yrd Mat Sub Mat Fac Low Low Zio Pro Fac Was Fac Ext Cet Arc Hub Fac Upp Upp Zhi Pro Fac Arm Traps Triggered 23 | . 1 2 . 1 . . . . 1 . 4 3 . . 1 4 . . . . 2 4 Indirectly 2 | . 1 . . . . . . . . . . . . . 1 . . . . . . . Trap Hack Attempts . | . . . . . . . . . . . . . . . . . . . . . . . Triggered . | . . . . . . . . . . . . . . . . . . . . . . . Disarmed . | . . . . . . . . . . . . . . . . . . . . . . . Reprogrammed . | . . . . . . . . . . . . . . . . . . . . . . . Reused . | . . . . . . . . . . . . . . . . . . . . . . . Traps Extracted . | . . . . . . . . . . . . . . . . . . . . . . . Installed . | . . . . . . . . . . . . . . . . . . . . . . . Triggered 1 | . . . . . 1 . . . . . . . . . . . . . . . . . Machines | -11 -10 -10 -8 -7 -7 -7 -7 -6 -6 -6 -6 -6 -6 -6 -6 -5 -5 -5 -5 -4 -4 -4 ---------- Run | Yrd Mat Sub Mat Fac Low Low Zio Pro Fac Was Fac Ext Cet Arc Hub Fac Upp Upp Zhi Pro Fac Arm Machines Disabled 58 | . 6 . 3 4 . . . . 1 . 1 4 . 1 20 2 1 . . 1 11 3 Max in Single Turn 13 | . 5 . 1 4 . . . . 1 . 1 1 . . 13 1 1 . . 1 2 1 Garrison Access 7 | . . . 1 2 . . . . 1 . 1 . . . 1 1 . . . . . . Network Hub 2 | . . . . . . . . . . . . . . . 2 . . . . . . . Energy Cycler 2 | . . . . . . . . . . . . 2 . . . . . . . . . . Machines Repaired . | . . . . . . . . . . . . . . . . . . . . . . . Machines Dismantled . | . . . . . . . . . . . . . . . . . . . . . . . Machines Sabotaged . | . . . . . . . . . . . . . . . . . . . . . . . Overloaded Fab Kills . | . . . . . . . . . . . . . . . . . . . . . . . Hacking | -11 -10 -10 -8 -7 -7 -7 -7 -6 -6 -6 -6 -6 -6 -6 -6 -5 -5 -5 -5 -4 -4 -4 --------- Run | Yrd Mat Sub Mat Fac Low Low Zio Pro Fac Was Fac Ext Cet Arc Hub Fac Upp Upp Zhi Pro Fac Arm Machines Accessed 105 | . 8 1 11 21 . 1 . . 7 . 13 8 3 . 8 7 1 1 8 1 6 . Terminals 69 | . 6 . 8 12 . 1 . . 4 . 10 8 3 . 8 3 1 . . 1 4 . Fabricators 4 | . . . . 2 . . . . 2 . . . . . . . . . . . . . Repair Stations 6 | . 1 . 1 1 . . . . . . 1 . . . . 1 . . . . 1 . Recycling Units 9 | . 1 . 1 3 . . . . . . 1 . . . . 2 . . . . 1 . Scanalyzers . | . . . . . . . . . . . . . . . . . . . . . . . Garrison Access 7 | . . . 1 3 . . . . 1 . 1 . . . . 1 . . . . . . Total Hacks 389 | . 29 4 36 57 . 8 . . 28 . 38 22 6 . 18 35 7 1 47 8 45 . Successful 233 | . 17 4 14 32 . 8 . . 19 . 22 9 . . 7 13 7 1 47 8 25 . Failed 155 | . 11 . 22 25 . . . . 9 . 16 13 6 . 11 22 . . . . 20 . Catastrophic 26 | . 3 . 4 4 . . . . . . . . 4 . 3 4 . . . . 4 . Database Lockouts 1 | . 1 . . . . . . . . . . . . . . . . . . . . . Manual 129 | . 14 . 20 25 . . . . 13 . 14 8 1 . 5 9 . . . . 20 . Terminals 241 | . 22 . 30 37 . 8 . . 15 . 29 22 6 . 18 13 7 . . 8 26 . Fabricators 18 | . . . . 7 . . . . 11 . . . . . . . . . . . . . Repair Stations 29 | . 4 . 1 1 . . . . . . 2 . . . . 11 . . . . 10 . Recycling Units 34 | . 3 . 3 6 . . . . . . 6 . . . . 7 . . . . 9 . Scanalyzers . | . . . . . . . . . . . . . . . . . . . . . . . Garrison Access 15 | . . . 2 6 . . . . 2 . 1 . . . . 4 . . . . . . Terminal Hacks 162 | . 9 4 12 17 . 8 . . 8 . 12 8 . . 5 4 7 1 47 8 12 . Record 64 | . . 4 . . . 8 . . . . 1 . . . . . 7 . 35 8 1 . Part Schematic 8 | . . . . 1 . . . . 1 . 1 1 . . . . . . 4 . . . Robot Analysis 6 | . 2 . . . . . . . . . . . . . . . . . 4 . . . Prototype ID Bank 14 | . . . 3 3 . . . . . . 1 . . . 2 . . . 4 . 1 . Open Door 3 | . . . . . . . . . . . . 2 . . . . . 1 . . . . Branch Access Points 4 | . . . 1 . . . . . 1 . . . . . . 1 . . . . 1 . Emergency Access Points 3 | . . . 1 . . . . . . . 2 . . . . . . . . . . . Terminal Index 4 | . 1 . . 1 . . . . 1 . . . . . . . . . . . 1 . Fabricator Index 1 | . . . . . . . . . 1 . . . . . . . . . . . . . Repair Station Index 1 | . . . . . . . . . . . . . . . . . . . . . 1 . Alert Level 8 | . . . 1 2 . . . . . . 1 . . . 1 1 . . . . 2 . Unreport Threat 14 | . . . 2 4 . . . . . . 2 2 . . . 2 . . . . 2 . Locate Traps 10 | . 2 . 1 1 . . . . 2 . 1 1 . . 1 . . . . . 1 . Surveillance Status 1 | . . . . 1 . . . . . . . . . . . . . . . . . . Patrol Status 1 | . . . . . . . . . . . . . . . . . . . . . 1 . Recall Investigation 3 | . 1 . . . . . . . 1 . . 1 . . . . . . . . . . Recall Extermination 1 | . . . . 1 . . . . . . . . . . . . . . . . . . Recall Reinforcements 1 | . . . 1 . . . . . . . . . . . . . . . . . . . Hauler Manifests 1 | . 1 . . . . . . . . . . . . . . . . . . . . . Registered Components 5 | . 1 . 1 1 . . . . . . 1 . . . 1 . . . . . . . Registered Prototypes 1 | . . . . . . . . . . . 1 . . . . . . . . . . . Zone Layout 8 | . 1 . 1 2 . . . . 1 . 1 1 . . . . . . . . 1 . Fabricator Hacks 8 | . . . . 3 . . . . 5 . . . . . . . . . . . . . Network Status 1 | . . . . . . . . . 1 . . . . . . . . . . . . . Load Schematic 4 | . . . . 2 . . . . 2 . . . . . . . . . . . . . Build 3 | . . . . 1 . . . . 2 . . . . . . . . . . . . . Repair Station Hacks 18 | . 4 . . 1 . . . . . . 1 . . . . 5 . . . . 7 . Scan Component 9 | . 2 . . . . . . . . . . . . . . 3 . . . . 4 . Repair 7 | . 2 . . . . . . . . . . . . . . 2 . . . . 3 . Refit 2 | . . . . 1 . . . . . . 1 . . . . . . . . . . . Recycling Unit Hacks 6 | . 1 . 1 . . . . . . . 1 . . . . 2 . . . . 1 . Retrieve Components 6 | . 1 . 1 . . . . . . . 1 . . . . 2 . . . . 1 . Scanalyzer . | . . . . . . . . . . . . . . . . . . . . . . . Garrison Access Hacks 4 | . . . . 1 . . . . 1 . 1 . . . . 1 . . . . . . Seal Access 4 | . . . . 1 . . . . 1 . 1 . . . . 1 . . . . . . Unauthorized Hacks 35 | . 3 . 1 10 . . . . 5 . 7 1 . . 2 1 . . . . 5 . Terminals 19 | . 1 . . 6 . . . . 3 . 3 1 . . 2 1 . . . . 2 . Track 5 | . . . . 2 . . . . 1 . 1 . . . . . . . . . 1 . Assimilate 4 | . . . . 2 . . . . 1 . . . . . . 1 . . . . . . Botnet 9 | . 1 . . 2 . . . . 1 . 2 1 . . 1 . . . . . 1 . Operators 1 | . . . . . . . . . . . . . . . 1 . . . . . . . Fabricators 2 | . . . . . . . . . 2 . . . . . . . . . . . . . Prioritize 1 | . . . . . . . . . 1 . . . . . . . . . . . . . Haulers 1 | . . . . . . . . . 1 . . . . . . . . . . . . . Repair Stations . | . . . . . . . . . . . . . . . . . . . . . . . Recycling Units 13 | . 2 . 1 3 . . . . . . 4 . . . . . . . . . 3 . Monitor 2 | . . . . . . . . . . . 1 . . . . . . . . . 1 . Reject 2 | . . . . . . . . . . . 1 . . . . . . . . . 1 . Mask 3 | . 1 . . . . . . . . . 1 . . . . . . . . . 1 . Tunnel 6 | . 1 . 1 3 . . . . . . 1 . . . . . . . . . . . Scanalyzers . | . . . . . . . . . . . . . . . . . . . . . . . Garrison Access 1 | . . . . 1 . . . . . . . . . . . . . . . . . . Jam 1 | . . . . 1 . . . . . . . . . . . . . . . . . . Data Cores Recovered . | . . . . . . . . . . . . . . . . . . . . . . . Used . | . . . . . . . . . . . . . . . . . . . . . . . Hacking Detections 84 | . 7 . 11 18 . . . . 7 . 11 7 3 . 8 6 . . . . 6 . Full Trace Events 11 | . 2 . 1 2 . . . . 2 . . 2 . . 1 . . . . . 1 . Feedback Events . | . . . . . . . . . . . . . . . . . . . . . . . Feedback Blocked . | . . . . . . . . . . . . . . . . . . . . . . . Robot Schematics Acquired 4 | . . . . . . . 4 . . . . . . . . . . . . . . . Robots Built . | . . . . . . . . . . . . . . . . . . . . . . . Authchips . | . . . . . . . . . . . . . . . . . . . . . . . Time . | . . . . . . . . . . . . . . . . . . . . . . . Total Robot Build Rating . | . . . . . . . . . . . . . . . . . . . . . . . Part Schematics Acquired 23 | . . . . 1 . . 15 . 1 . 1 1 . . . . . . 4 . . . Parts Built 3 | . . . . 1 . . . . 2 . . . . . . . . . . . . . Authchips . | . . . . . . . . . . . . . . . . . . . . . . . Time 192 | . . . . 58 . . . . 134 . . . . . . . . . . . . . Total Part Build Rating 11 | . . . . 3 . . . . 8 . . . . . . . . . . . . . Parts Repaired 7 | . 2 . . . . . . . . . . . . . . 2 . . . . 3 . Time 457 | . 29 . . . . . . . . . . . . . . 122 . . . . 306 . Parts Recycled . | . . . . . . . . . . . . . . . . . . . . . . . Recycled Matter . | . . . . . . . . . . . . . . . . . . . . . . . Retrieved Matter . | . . . . . . . . . . . . . . . . . . . . . . . Retrieved Components 18 | . 1 . 9 . . . . . . . . . . . . 6 . . . . 2 . Parts Scanalyzed . | . . . . . . . . . . . . . . . . . . . . . . . Part Schematics Acquired . | . . . . . . . . . . . . . . . . . . . . . . . Parts Damaged . | . . . . . . . . . . . . . . . . . . . . . . . Bothacking | -11 -10 -10 -8 -7 -7 -7 -7 -6 -6 -6 -6 -6 -6 -6 -6 -5 -5 -5 -5 -4 -4 -4 ------------ Run | Yrd Mat Sub Mat Fac Low Low Zio Pro Fac Was Fac Ext Cet Arc Hub Fac Upp Upp Zhi Pro Fac Arm Used RIF Installer . | . . . . . . . . . . . . . . . . . . . . . . . Robots Hacked 1 | . . . . . . . . . . . . 1 . . . . . . . . . . Non-combat . | . . . . . . . . . . . . . . . . . . . . . . . Combat 1 | . . . . . . . . . . . . 1 . . . . . . . . . . Robot Hacks Applied 1 | . . . . . . . . . . . . 1 . . . . . . . . . . parse_system 1 | . . . . . . . . . . . . 1 . . . . . . . . . . Relay Couplers Released 5 | . . . 3 . . . . . . . . . . . 2 . . . . . . . Machine Destruction 5 | . . . 3 . . . . . . . . . . . 2 . . . . . . . Fabnet Peak Effective % . | . . . . . . . . . . . . . . . . . . . . . . . Robots Rewired 24 | . . . . . . . . . . . . 22 . . . . . . . . . 2 Allies Hacked . | . . . . . . . . . . . . . . . . . . . . . . . Hacks Repelled . | . . . . . . . . . . . . . . . . . . . . . . . Allies | -11 -10 -10 -8 -7 -7 -7 -7 -6 -6 -6 -6 -6 -6 -6 -6 -5 -5 -5 -5 -4 -4 -4 -------- Run | Yrd Mat Sub Mat Fac Low Low Zio Pro Fac Was Fac Ext Cet Arc Hub Fac Upp Upp Zhi Pro Fac Arm Total Allies 37 | . . . . 2 . . . . . . . 28 5 . . . . . . . . 2 Largest Group 15 | . . . . 1 . . . . . . . 15 10 6 5 1 . . . . . 2 Highest-Rated Group 721 | . . . . 26 . . . . . . . 541 721 495 475 89 . . . . . 78 Highest-Rated Ally 159 | . . . . 26 . . . . . . . 159 136 96 96 89 . . . . . 48 Total Orders 4 | . . . . . . . . . . . . . 4 . . . . . . . . . STAY 2 | . . . . . . . . . . . . . 2 . . . . . . . . . FOLLOW 2 | . . . . . . . . . . . . . 2 . . . . . . . . . Ally Attacks 360 | . . . . . . . . . . . . 193 57 21 86 3 . . . . . . Total Damage 10729 | . . . . . . . . . . . . 3880 2120 856 3827 46 . . . . . . Kills 72 | . . . . . . . . . . . . 32 6 3 31 . . . . . . . Allies Corrupted . | . . . . . . . . . . . . . . . . . . . . . . . Allies Melted 1 | . . . . . . . . . . . . 1 . . . . . . . . . . Intel | -11 -10 -10 -8 -7 -7 -7 -7 -6 -6 -6 -6 -6 -6 -6 -6 -5 -5 -5 -5 -4 -4 -4 ------- Run | Yrd Mat Sub Mat Fac Low Low Zio Pro Fac Was Fac Ext Cet Arc Hub Fac Upp Upp Zhi Pro Fac Arm Robot Analysis Total 6 | . 2 . . . . . . . . . . . . . . . . . 4 . . . Derelict Logs Recovered 15 | . . 3 . . 1 1 2 1 . . . . . . . . 2 3 . 2 . . Drone Launches . | . . . . . . . . . . . . . . . . . . . . . . . Drone Recoveries . | . . . . . . . . . . . . . . . . . . . . . . . Exploration | -11 -10 -10 -8 -7 -7 -7 -7 -6 -6 -6 -6 -6 -6 -6 -6 -5 -5 -5 -5 -4 -4 -4 ------------- Run | Yrd Mat Sub Mat Fac Low Low Zio Pro Fac Was Fac Ext Cet Arc Hub Fac Upp Upp Zhi Pro Fac Arm Turns Passed 22078 | 3 1578 3576 1485 1513 306 368 282 285 417 26 613 1209 623 640 1041 1476 1371 868 337 1854 1628 579 Spaces Moved 16603 | 1 626 1332 796 2325 766 629 846 658 1028 95 1532 943 317 300 383 617 753 499 176 1032 575 374 Core 59 | . . . . . . . . . . . 1 . . . . . . . . . 4 54 Treads 7555 | 1 626 1332 504 71 . . . . . . . 357 317 300 383 617 753 499 176 1032 571 16 Legs 155 | . . . . . . . . . . . . 6 . . . . . . . . . 149 Wheels 433 | . . . 292 141 . . . . . . . . . . . . . . . . . . Hover 161 | . . . . 6 . . . . . . . . . . . . . . . . . 155 Flight 8240 | . . . . 2107 766 629 846 658 1028 95 1531 580 . . . . . . . . . . Fastest Speed 26 | 160 160 240 130 32 32 32 32 32 26 26 26 26 160 160 160 160 160 160 160 160 50 50 Average Speed 105 | 160 217 240 153 47 32 32 32 32 31 26 26 79 160 160 237 160 160 163 160 160 190 92 Slowest Speed 300 | 160 240 240 243 245 32 32 99 99 32 26 300 240 160 160 240 160 160 240 160 160 240 190 Overloaded Moves . | . . . . . . . . . . . . . . . . . . . . . . . Propulsion Burnouts . | . . . . . . . . . . . . . . . . . . . . . . . Robots Hopped 36 | . . . . 5 . . . 1 8 . 9 13 . . . . . . . . . . Cave-ins Triggered 1 | . . . . . . . . . . . . . . . . . . . . . 1 . Exploration Rate (%) 64 | 2 83 85 80 64 86 71 84 77 22 91 49 89 72 96 51 18 86 82 63 95 20 18 Regions Visited 22 Branch Regions 14 Pre-discovered Areas 12 | . 1 2 1 3 . . 1 . . . 1 . . . . . . . 3 . . . Known Exits Taken 11 | . . . 1 1 1 1 1 1 . . 1 . . . 1 1 . . . 1 1 . Unknown Exits Taken 9 | 1 1 1 . . . . . . . . . 1 1 1 . . 1 1 1 . . . Scrap Searched 29 | . . 11 . . 2 3 3 4 . . . . . . . . 1 2 . 3 . . Spaces Dug 234 | . . 24 . 35 31 5 . . 16 . 19 21 . . 4 17 31 . . 7 22 2 Terrain Destroyed 914 | . 11 24 35 56 41 5 . 22 16 . 21 31 20 4 247 28 39 5 . 23 220 66 Melee 114 | . . . . 35 5 5 . . 16 . 18 20 . . 2 11 . . . . . 2 Projectile 177 | . 7 6 9 6 . . . . . . 3 11 . 4 4 17 36 5 . 23 43 3 AOE 623 | . 4 18 26 15 36 . . 22 . . . . 20 . 241 . 3 . . . 177 61 Terrain Rammed . | . . . . . . . . . . . . . . . . . . . . . . . Walls Destroyed . | . . . . . . . . . . . . . . . . . . . . . . . Machines Disabled . | . . . . . . . . . . . . . . . . . . . . . . . Actions | -11 -10 -10 -8 -7 -7 -7 -7 -6 -6 -6 -6 -6 -6 -6 -6 -5 -5 -5 -5 -4 -4 -4 --------- Run | Yrd Mat Sub Mat Fac Low Low Zio Pro Fac Was Fac Ext Cet Arc Hub Fac Upp Upp Zhi Pro Fac Arm Total 19689 | 2 752 1511 975 2607 811 789 853 726 1087 95 1677 1276 381 416 470 992 864 531 221 1175 951 527 Wait 950 | . 45 27 38 77 25 150 . 54 19 . 7 44 1 53 9 203 21 5 . 35 137 . Move 16518 | . 625 1331 795 2314 765 628 845 655 1012 94 1513 924 316 299 382 616 752 498 175 1031 574 374 Hop 28 | . . . . 5 . . . 1 8 . 9 5 . . . . . . . . . . Pick Up 243 | . 18 14 32 21 . 1 . 3 3 1 13 24 9 8 12 21 3 5 6 7 29 13 Fast Attach 134 | . 6 1 7 12 1 . 3 . 6 . 5 18 1 7 6 6 . . 5 3 9 38 Attach 120 | . 1 10 8 17 2 . . 4 5 . 5 11 2 2 6 12 3 2 1 2 24 3 Detach 38 | . . . . 10 2 . . 2 3 . 3 5 1 1 2 2 . . . . 2 5 Swap 136 | 2 1 8 10 12 2 4 1 1 2 . 5 10 4 3 13 17 5 3 2 11 18 2 Drop 214 | . 10 8 35 32 . 1 2 1 2 . 17 23 9 12 7 14 1 2 10 10 14 4 Fire 818 | . 46 112 49 36 4 . . 2 . . 7 54 10 9 28 84 79 16 22 76 144 40 Melee 315 | . . . . 71 10 5 2 3 27 . 48 59 28 22 4 17 . . . . . 19 Ram 1 | . . . . . . . . . . . . . . . . . . . . . . 1 Kick . | . . . . . . . . . . . . . . . . . . . . . . . Crush 14 | . . . 1 . . . . . . . . 1 . . . . . . . . . 12 Escape Stasis 99 | . . . . . . . . . . . 45 54 . . . . . . . . . . Rewire 61 | . . . . . . . . . . . . 44 . . 1 . . . . . . 16 Trap . | . . . . . . . . . . . . . . . . . . . . . . . Miscellaneous . | . . . . . . . . . . . . . . . . . . . . . . . Route ------- -11/Scrapyard -10/Materials (discovered 5 exits: [*Mat x3] / [*Min] / *Sub) -10/Subcaves (discovered 3 exits: *Mat x2 / *Rec) -8/Materials (discovered 3 exits: *Fac x3) -7/Factory (discovered 4 exits: *Fac x2 / *Low x2) -7/Lower Caves -7/Lower Caves (discovered 2 exits: *Fac / *Zio) -7/Zion -6/Proximity Caves -6/Factory (discovered 5 exits: *Fac / Low x2 / Ext x2) -6/Waste -6/Factory (discovered 4 exits: *Fac x2 / *Low / *Ext) -6/Extension (discovered 2 exits: *Fac / *Cet) -6/Cetus (discovered 2 exits: *Fac / *Arc) -6/Archives (discovered 3 exits: *Fac / *Hub x2) -6/Hub_04(d) (discovered 3 exits: *Fac x3) -5/Factory (discovered 2 exits: *Upp x2) -5/Upper Caves -5/Upper Caves (discovered 2 exits: *Fac / *Zhi) -5/Zhirov -4/Proximity Caves -4/Factory (discovered 5 exits: Res x2 / Upp x2 / *Arm) -4/Armory History --------- Turn | Location | Event 4 | -11/Scrapyard | Discovered new exit (range 0) 4 | -11/Scrapyard | Entered Materials 21 | -10/Materials | Discovered new exit (range 15) 217 | -10/Materials | Discovered new exit (range 6) 312 | -10/Materials | Build established: Mutant 576 | -10/Materials | Central database locked down 723 | -10/Materials | Discovered new exit (range 16) 1159 | -10/Materials | Discovered new exit (range 8) 1385 | -10/Materials | Repaired Med. Armor Plating 1405 | -10/Materials | Repaired Lgt. Treads 1574 | -10/Materials | Discovered new exit (range 4) 1582 | -10/Materials | Entered Subcaves 1585 | -10/Subcaves | Identified exit to Recycling 1618 | -10/Subcaves | Shifting Twisted Machinery released Mak. Sword 1651 | -10/Subcaves | Shifting Twisted Machinery released Battle Cannon 1723 | -10/Subcaves | Learned location of 1 exit from Materials 2194 | -10/Subcaves | Learned location of Zion (-7) 2194 | -10/Subcaves | Met a Zionite searching for "candidates" 2459 | -10/Subcaves | A swath of the cavern ceiling suddenly collapsed 2688 | -10/Subcaves | Discovered new exit (range 5) 3421 | -10/Subcaves | Shifting Twisted Machinery released Barrage Gun 3455 | -10/Subcaves | Shifting Twisted Machinery released Sub. Shrapnel Launcher 3512 | -10/Subcaves | Destroyed 7 combat bots 3566 | -10/Subcaves | A swath of the cavern ceiling suddenly collapsed 3670 | -10/Subcaves | Discovered new exit (range 10) 3764 | -10/Subcaves | Core integrity fell below 50% 3906 | -10/Subcaves | Lost 3 parts (1n1u1w) 4142 | -10/Subcaves | Visited Clippyterm 4150 | -10/Subcaves | Learned Factory emergency access door positions 4249 | -10/Subcaves | Ambushed by Subdweller buried in earth 4610 | -10/Subcaves | Core integrity fell below 20% 5158 | -10/Subcaves | Entered Materials 5158 | -8/Materials | Evolved 4 slots: Propulsion x2, Utility x2 5159 | -8/Materials | Identified exit to Factory 5531 | -8/Materials | Lost 3 parts (1n1u1w) 5551 | -8/Materials | Destroyed 7 combat bots 5698 | -8/Materials | Build established: Scavenger-Mutant 5907 | -8/Materials | Discovered exit to Factory (range 10) 6271 | -8/Materials | Discovered exit to Factory (range 15) 6643 | -8/Materials | Entered Factory 6643 | -7/Factory | Evolved 2 slots: Power x1, Utility x1 6653 | -7/Factory | Discovered new exit (range 10) 7043 | -7/Factory | Build established: Hacker-Mutant 7251 | -7/Factory | Discovered new exit (range 13) 7277 | -7/Factory | Discovered new exit (range 6) 8015 | -7/Factory | Discovered new exit (range 19) 8031 | -7/Factory | P-60 Hacker assimilated allied Administrator 4a 8097 | -7/Factory | Identified exit to Lower Caves 8127 | -7/Factory | Fabricated Imp. VTOL Module? 8156 | -7/Factory | Entered Lower Caves 8159 | -7/Lower Caves | Encountered a Warlord checkpoint 8169 | -7/Lower Caves | Spotted B-75 Beast 8439 | -7/Lower Caves | Build established: Hacker-Sprinter 8448 | -7/Lower Caves | Discovered new exit (range 13) 8454 | -7/Lower Caves | Learned Factory security intel 8461 | -7/Lower Caves | Identified exit to Lower Caves 8462 | -7/Lower Caves | Entered another Lower Caves area 8471 | -7/Lower Caves | Discovered new exit (range 10) 8473 | -7/Lower Caves | Identified exit to Factory 8528 | -7/Lower Caves | Learned Factory security intel 8656 | -7/Lower Caves | Spotted B-75 Beast 8774 | -7/Lower Caves | Discovered new exit (range 10) 8777 | -7/Lower Caves | Identified exit to Zion 8819 | -7/Lower Caves | Attracted the attention of an 0b10 base 8820 | -7/Lower Caves | Learned Factory garrison access intel 8820 | -7/Lower Caves | Learned Factory terminal intel 8820 | -7/Lower Caves | Learned Research security intel 8820 | -7/Lower Caves | Learned Armory emergency access door positions 8820 | -7/Lower Caves | Learned 6 Upper Caves zone layouts 8830 | -7/Lower Caves | Entered Zion 8848 | -7/Zion | Discovered new exit (range 12) 8852 | -7/Zion | Identified exit to Proximity Caves 9008 | -7/Zion | Learned Factory garrison access intel 9112 | -7/Zion | Entered Proximity Caves 9316 | -6/Proximity Caves | Core integrity fell below 50% 9373 | -6/Proximity Caves | Learned Factory terminal intel 9374 | -6/Proximity Caves | Attracted the attention of an 0b10 checkpoint 9393 | -6/Proximity Caves | Discovered exit to Factory (range 12) 9395 | -6/Proximity Caves | Lost 4 parts (1p1u2w) 9397 | -6/Proximity Caves | Entered Factory 9397 | -6/Factory | Evolved 2 slots: Utility x2 9399 | -6/Factory | Loaded intel: 28 terminal locations 9400 | -6/Factory | Loaded intel: 4 garrison access locations 9465 | -6/Factory | Discovered new exit (range 3) 9466 | -6/Factory | Identified exit to Factory 9482 | -6/Factory | Identified exit to Lower Caves 9482 | -6/Factory | Identified exit to Extension 9581 | -6/Factory | Fabricated Cld. VTOL Module? 9747 | -6/Factory | Fabricated Cld. VTOL Module? 9747 | -6/Factory | Search patrols dispatched 9814 | -6/Factory | Sucked down chute 9814 | -6/Factory | Entered Waste 9816 | -6/Waste | Spotted C-40 Crusher 9817 | -6/Waste | Spotted C-40 Crusher 9820 | -6/Waste | Spotted C-40 Crusher 9825 | -6/Waste | Spotted C-40 Crusher 9827 | -6/Waste | Spotted C-40 Crusher 9829 | -6/Waste | EMP discharged 9829 | -6/Waste | System corruption reached 10% 9837 | -6/Waste | Spotted C-40 Crusher 9838 | -6/Waste | Discovered new exit (range 10) 9840 | -6/Waste | Entered Factory 9842 | -6/Factory | Loaded intel: 28 terminal locations 9843 | -6/Factory | Loaded intel: 4 garrison access locations 10007 | -6/Factory | Discovered exit to Lower Caves (range 7) 10038 | -6/Factory | Discovered exit to Extension (range 13) 10072 | -6/Factory | Discovered exit to Factory (range 20) 10264 | -6/Factory | Discovered exit to Factory (range 20) 10453 | -6/Factory | Entered Extension 10500 | -6/Extension | Spotted B-75 Beast 10542 | -6/Extension | Rescued a captive Derelict 10601 | -6/Extension | Lost 4 parts (2p1u1w) 10678 | -6/Extension | Lost 3 allies 10735 | -6/Extension | Rescued A7 10745 | -6/Extension | Rescued a captive Derelict 10860 | -6/Extension | Spotted B-75 Beast 10895 | -6/Extension | Allies destroyed B-75 Beast 10917 | -6/Extension | Lost 5 allies 10931 | -6/Extension | Allies destroyed B-75 Beast 10961 | -6/Extension | Lost 8 parts (1p2n4u1w) 11091 | -6/Extension | Rescued a captive Derelict 11098 | -6/Extension | Rescued a captive Derelict 11120 | -6/Extension | Core integrity fell below 50% 11395 | -6/Extension | Lost 3 allies 11481 | -6/Extension | Build established: Commander-Mutant 11527 | -6/Extension | Energy Cycler disabled 11527 | -6/Extension | Rescued a captive Derelict 11558 | -6/Extension | Lost 11 allies 11594 | -6/Extension | Discovered exit to Factory (range 10) 11596 | -6/Extension | Discovered new exit (range 6) 11662 | -6/Extension | Entered Cetus 11662 | -6/Cetus | Accompanied by 5 allies (A7) 11667 | -6/Cetus | Acquired a Cetus Manufacturing Module code from A7 11683 | -6/Cetus | Spotted Cetus Guard 11683 | -6/Cetus | Spotted Cetus Guard 11688 | -6/Cetus | Allies destroyed Cetus Guard 11688 | -6/Cetus | Spotted Cetus Guard 11691 | -6/Cetus | Spotted Cetus Guard 11693 | -6/Cetus | Destroyed Cetus Guard 11699 | -6/Cetus | Allies destroyed Cetus Guard 11702 | -6/Cetus | Destroyed Cetus Guard 11826 | -6/Cetus | Started Cetus Manufacturing Module 11829 | -6/Cetus | Build established: Scavenger-Mutant 11851 | -6/Cetus | Manufactured an Enhanced Grunt 11876 | -6/Cetus | Manufactured an Enhanced Grunt 11901 | -6/Cetus | Manufactured an Enhanced Grunt 11926 | -6/Cetus | Manufactured an Enhanced Grunt 11951 | -6/Cetus | Manufactured an Enhanced Grunt 12095 | -6/Cetus | Discovered new exit (range 22) 12131 | -6/Cetus | Spotted Cetus Guard 12131 | -6/Cetus | Spotted Cetus Guard 12131 | -6/Cetus | Spotted Cetus Guard 12131 | -6/Cetus | Spotted Cetus Guard 12134 | -6/Cetus | Discovered exit to Factory (range 21) 12146 | -6/Cetus | Extracted ID and sensor layout for unrecognized location from A7's data core 12149 | -6/Cetus | Found Med. Regenerative Plating 12155 | -6/Cetus | Allies destroyed Cetus Guard 12159 | -6/Cetus | Allies destroyed Cetus Guard 12162 | -6/Cetus | Allies destroyed Cetus Guard 12163 | -6/Cetus | Met Revision 17 12191 | -6/Cetus | Lost 4 allies 12285 | -6/Cetus | Entered Archives 12285 | -6/Archives | Accompanied by 6 allies 12326 | -6/Archives | Discovered new exit (range 22) 12375 | -6/Archives | Discovered new exit (range 22) 12466 | -6/Archives | Discovered exit to Factory (range 20) 12842 | -6/Archives | Unable to access archive contents 12925 | -6/Archives | Entered Hub_04(d) 12925 | -6/Hub_04(d) | Accompanied by 5 allies 12969 | -6/Hub_04(d) | Discovered exit to Factory (range 19) 13257 | -6/Hub_04(d) | Build established: Scavenger-Assassin 13274 | -6/Hub_04(d) | Discovered exit to Factory (range 22) 13721 | -6/Hub_04(d) | Discovered exit to Factory (range 10) 13790 | -6/Hub_04(d) | Garrison activated, responded to threat 13857 | -6/Hub_04(d) | Found Prototype Device 13880 | -6/Hub_04(d) | Found Prototype Device 13881 | -6/Hub_04(d) | Identified Exp. Thermal Shield (x2) 13959 | -6/Hub_04(d) | Network Hub disabled 13959 | -6/Hub_04(d) | Network Hub disabled 13964 | -6/Hub_04(d) | Spotted Lightning 13965 | -6/Hub_04(d) | Spotted Lightning 13966 | -6/Hub_04(d) | Entered Factory 13966 | -5/Factory | Accompanied by 1 ally 13966 | -5/Factory | Evolved 2 slots: Utility x1, Weapon x1 14273 | -5/Factory | Discovered new exit (range 15) 14427 | -5/Factory | Identified exit to Upper Caves 14605 | -5/Factory | Repaired Broken Centrium Heavy Treads 14661 | -5/Factory | Repaired Centrium Medium Armor Plating 15076 | -5/Factory | Build established: Scavenger-Mutant 15442 | -5/Factory | Entered Upper Caves 15824 | -5/Upper Caves | Learned 12 Factory zone layouts 15911 | -5/Upper Caves | Build established: Scavenger-Gunner 16167 | -5/Upper Caves | Learned Extension emergency access door positions 16167 | -5/Upper Caves | Learned Research trap positions 16167 | -5/Upper Caves | Learned 8 Factory zone layouts 16167 | -5/Upper Caves | Learned location of 1 exit from Proximity Caves 16168 | -5/Upper Caves | Attracted the attention of an 0b10 base 16237 | -5/Upper Caves | Destroyed 13 combat bots 16430 | -5/Upper Caves | Learned location of 1 exit from Factory 16482 | -5/Upper Caves | Build established: Scavenger-Tank 16637 | -5/Upper Caves | Discovered new exit (range 18) 16813 | -5/Upper Caves | Entered another Upper Caves area 16820 | -5/Upper Caves | Discovered new exit (range 8) 16961 | -5/Upper Caves | Learned Factory garrison access intel 16969 | -5/Upper Caves | Learned 4 Factory zone layouts 17178 | -5/Upper Caves | Build established: Scavenger-Mutant 17464 | -5/Upper Caves | Learned Factory emergency access door positions 17499 | -5/Upper Caves | Build established: Scavenger-Tank 17638 | -5/Upper Caves | Discovered new exit (range 12) 17672 | -5/Upper Caves | Attracted the attention of an 0b10 checkpoint 17681 | -5/Upper Caves | Entered Zhirov 17681 | -5/Zhirov | Discovered new exit (range 3) 17710 | -5/Zhirov | Met Zhirov 17742 | -5/Zhirov | Learned location of Quarantine (-2) 17742 | -5/Zhirov | Learned location of Command (-1) 17773 | -5/Zhirov | Zhirov requested help retrieving the SGEMP Prototype 17806 | -5/Zhirov | Found Alien Artifact 17828 | -5/Zhirov | Found Alien Artifact 17828 | -5/Zhirov | Identified Integrated Reactor 17828 | -5/Zhirov | Installed Integrated Reactor, increased core energy generation (+10) 18018 | -5/Zhirov | Entered Proximity Caves 18019 | -4/Proximity Caves | Identified exit to Factory 18020 | -4/Proximity Caves | Spotter reported a threat 18021 | -4/Proximity Caves | Spotter reported a threat 18073 | -4/Proximity Caves | Attracted the attention of an 0b10 checkpoint 18157 | -4/Proximity Caves | Build established: Scavenger-Gunner 18235 | -4/Proximity Caves | Spotter reported a threat 18302 | -4/Proximity Caves | Spotter reported a threat 18699 | -4/Proximity Caves | Spotter reported a threat 18833 | -4/Proximity Caves | Spotter reported a threat 18853 | -4/Proximity Caves | Learned 4 Research zone layouts 18884 | -4/Proximity Caves | Learned Research trap positions 19212 | -4/Proximity Caves | Build established: Scavenger-Tank 19636 | -4/Proximity Caves | Learned 8 Factory zone layouts 19636 | -4/Proximity Caves | Learned 8 Research zone layouts 19636 | -4/Proximity Caves | Learned Research security intel 19636 | -4/Proximity Caves | Learned Extension security intel 19636 | -4/Proximity Caves | Learned Research terminal intel 19636 | -4/Proximity Caves | Learned Factory garrison access intel 19645 | -4/Proximity Caves | Spotter reported a threat 19652 | -4/Proximity Caves | Attracted the attention of an 0b10 base 19705 | -4/Proximity Caves | Destroyed 7 combat bots 19869 | -4/Proximity Caves | System corruption reached 10% 19872 | -4/Proximity Caves | Entered Factory 19872 | -4/Factory | Evolved 2 slots: Propulsion x1, Utility x1 19873 | -4/Factory | Identified exit to Upper Caves 19874 | -4/Factory | Identified exit to Armory 19874 | -4/Factory | Identified exit to Research 19876 | -4/Factory | Loaded intel: 4 garrison access locations 19959 | -4/Factory | Spotted B-86 Titan 20122 | -4/Factory | Search patrols dispatched 20192 | -4/Factory | Build established: Scavenger-Mutant 20372 | -4/Factory | Search patrols dispatched 20498 | -4/Factory | Repaired Broken Centrium Heavy Treads? 20665 | -4/Factory | Repaired Centrium Heavy Treads 20667 | -4/Factory | Search patrols dispatched 20742 | -4/Factory | Repaired HERF Cannon? 20874 | -4/Factory | Crushed by falling debris 20905 | -4/Factory | Lost 7 parts (1p6u) 21168 | -4/Factory | Lost 3 parts (1n1u1w) 21294 | -4/Factory | Destroyed 8 combat bots 21319 | -4/Factory | System corruption reached 10% 21397 | -4/Factory | Build established: Scavenger-Tank 21397 | -4/Factory | Lost 5 parts (1n2u2w) 21403 | -4/Factory | Destroyed 13 combat bots 21467 | -4/Factory | Lost 5 parts (2p2u1w) 21481 | -4/Factory | Core integrity fell below 50% 21500 | -4/Factory | Entered Armory 21530 | -4/Armory | Lost 10 parts (2p3n2u3w) 21628 | -4/Armory | Core integrity fell below 20% 21653 | -4/Armory | Lost 8 parts (2n3u3w) 21750 | -4/Armory | First assault squad dispatched 21972 | -4/Armory | Lost 7 parts (1p2n3u1w) 22079 | -4/Armory | Destroyed by G-67 Veteran with Plasma Rifle Last Messages --------------- 22065_ Dropped Hcp. Storage Unit. 22067_ Dropped Lgt. Quantum Reactor. 22069_ M-36 Artificer fits Backup Laser VII on G-73 Enforcer. 22069_ Slug penetrates Wall. 22070_ Slug penetrates G-73 Enforcer. 22071_ M-36 Artificer repairs G-73 Enforcer. 22073_ Penetrated by Slug. 22073_ Enh. Optical Array destroyed. 22073_ Slug penetrates Wall. 22073_ M-36 Artificer repairs Adv. Heat Sink. 22077_ Slug penetrates G-73 Enforcer. 22077_ Slug penetrates G-67 Veteran. 22077_ Penetrated by Slug. 22077_ Hyp. Gauss Rifle destroyed. 22077_ M-36 Artificer repairs Lgt. Quantum Reactor. 22078_ Terminal disabled. 22079_ Lyr. Light Armor Plating destroyed. Map ----- +----------------------------------------------------+ | ?????????????????????????????????????????????????? | | ?????????????????????????????????????????????????? | | ?????????????????????????????????????????????????? | | ?????????????????????????????????????????????????? | | ?????????????????????????????????????????????????? | | ?????????????????????????????????????????????????? | | ?????????????????????????????????????????????????? | | ?????????????????????????????????????????????????? | | ?????????????????????????????????????????????????? | | ?????????????????????????????????????????????????? | | ?????????????????????????????????????????????????? | | ??????????????????????????????+??????????????????? | | ?????????????????????????????????????????????????? | | ???????????????????????????????????????????????### | | ???????????????????????????????????????????????# # | | ???????????????????????????????????????????????# | | ?????????????????????????????????############### | | ?????????????????????????????????# %" | | ?????????????????????????????????# """"" | | ?????????????????????????????????# ]*] *" # | | ?????????????????????????????????# ]]]/" *" | | ???????????+?????????????????????# ]!!!""""" ## | | ???????+??????????????????######## ]]=][* ## | | ??????????????????????????# #####"######## | | ???????????????????# ##### l g b | | ???????????????????# @ g | | ???????????????????# m | | ???????????+???????# ## g | | ???????????????????# ?# ###+############# | | ???????????????????#g ?########???????????????? | | ??????????????????ggg ????????????????????????? | | ????????????????# ##?????????????????????????? | | ????????????????#+##+#???????????????????????????? | | ????????????????????????????+????+???????????????? | | ?????????????????????????????????????????????????? | | ?+???????????+???????????????????????????????????? | | ?????????????????????????????????????????????????? | | ?????????????????????????????????????????????????? | | ?????????????????????????????????????????????????? | | ?????????????????????????????????????????????????? | | | | | | | | | | | | | | | | | | | | | +----------------------------------------------------+ Best States ------------- Heat Dissipation 123 Coolant Potential 80 Energy Generation 64 Energy Capacity 1240 Matter Stores 300 Matter Capacity 300 Sight Range 22 Robot Scan Range 16 Terrain Scan Range 20 Terrain Scan Density 210 ECM Strength 1 Jamming Range 14 Cloak Strength 2 Power Amplification 30 Additional Mass Support 9 Corruption Containment 8 Armor Coverage 1350 Resistance: KI 20 Resistance: TH 15 Resistance: EM 15 Weapon Shielding 90 Weapon Cycling 20 Melee Speed Boost 20 Phase Shifting 10 Evasion (%) 74 Melee Accuracy 8 Recoil Reduction 5 Particle Charging 25 Offensive Hacking 30 Defensive Hacking 10 Item Schematics ----------------- Imp. VTOL Module | -7/Factory | Hacked Mak. Shrapnel Gun | -7/Zion | Archive Stasis Canceller | -7/Zion | Archive Mak. Hover Unit | -7/Zion | Archive Med. Treads | -7/Zion | Archive Proton Cannon | -7/Zion | Archive Power Maul | -7/Zion | Archive Antigrav System | -7/Zion | Archive Imp. Coolant Injector | -7/Zion | Archive Mak. Salvage Targeting Computer | -7/Zion | Archive Thermic Laser | -7/Zion | Archive Plasma Cannon | -7/Zion | Archive Magnetic Acceleration Cannon | -7/Zion | Archive Imp. Shield Generator | -7/Zion | Archive Focal Shield | -7/Zion | Archive Adv. Terrain Scan Processor | -7/Zion | Archive Cld. VTOL Module | -6/Factory | Hacked Weapon Mount | -6/Factory | Hacked Graphene Brace | -6/Extension | Hacked Assault Drone Bay | -5/Zhirov | Free Exp. Heat Sink | -5/Zhirov | Free Exp. Optical Array | -5/Zhirov | Free Imp. Arc Thrower | -5/Zhirov | Free Robot Schematics ------------------ R-06 Scavenger | -7/Zion | Archive H-88 Terminator | -7/Zion | Archive S-27 Virus | -7/Zion | Archive A-02 Transporter | -7/Zion | Archive Fabricated ------------ Imp. VTOL Module | x1 | -7/Factory Cld. VTOL Module | x1 | -6/Factory Cld. VTOL Module | x1 | -6/Factory Alien Tech Used ----------------- Integrated Reactor Achievements -------------- None Challenges ------------ None Game ------ Seed AngularMobileLoader Manual? 0 Play Time 05:08:42 Cumulative 173.3 hours Start 2024.04.18 @ 11:49:06 End 2024.04.19 @ 16:16:27 Sessions 3 Manual Loads 0 Difficulty Rogue Special Mode None Game No. 70 Rogue 68 Adventurer 2 Explorer 0 Win Type - Total 5 Types 4/0/0/1/0/0/0/0/0 Lore% 62 Gallery% 75 Achievement% 62 Wizard Run 0 Options --------- Layout 2 ASCII 0 Keyboard 0 Movement Numpad Keybinds 0 Fullscreen 2 Font 32/SmallcapsGlow Map View 50x44 Zoom Use 0% Tactical HUD 1 Map Filters NONE Filters NONE Steam 1 RUN: f6042d28-7d1c-4c88-86c3-485db00fe420